[Event "*** Titled Tuesday Blitz"]
[Site "Chess.com"]
[Date "2020.11.10"]
[Round "1"]
[White "malakismayil"]
[Black "Xtrmntr78"]
[Result "0-1"]
[WhiteElo "2237"]
[BlackElo "2568"]
[TimeControl "180+1"]
[EndTime "10:07:55 PST"]
[Termination "Xtrmntr78 won by resignation"]

1. e4 {[%clk 0:02:58.3]} 1... e5 {[%clk 0:02:44]} 2. Nf3 {[%clk 0:02:57.3]} 2...
d5 {[%clk 0:02:44]} 3. exd5 {[%clk 0:02:42.5]} 3... Bd6 {[%clk 0:02:44.3]} 4.
Nc3 {[%clk 0:02:41.1]} 4... f5 {[%clk 0:02:44.3]} 5. Bb5+ {[%clk 0:02:39.2]}
5... Bd7 {[%clk 0:02:43.8]} 6. Bxd7+ {[%clk 0:02:38.4]} 6... Nxd7 {[%clk
0:02:44.4]} 7. d3 {[%clk 0:02:39.3]} 7... Ngf6 {[%clk 0:02:44]} 8. Ng5 {[%clk
0:02:34.9]} 8... Qe7 {[%clk 0:02:43]} 9. Qe2 {[%clk 0:02:30.4]} 9... h6 {[%clk
0:02:41]} 10. Nf3 {[%clk 0:02:23.7]} 10... a6 {[%clk 0:02:38.6]} 11. Bd2 {[%clk
0:02:22.4]} 11... g5 {[%clk 0:02:37.8]} 12. h3 {[%clk 0:02:20.2]} 12... O-O-O
{[%clk 0:02:34.5]} 13. O-O-O {[%clk 0:02:18.4]} 13... Rde8 {[%clk 0:02:31.3]}
14. Rde1 {[%clk 0:02:15.5]} 14... Qf7 {[%clk 0:02:30.7]} 15. Kb1 {[%clk
0:02:05.1]} 15... Rhg8 {[%clk 0:02:24.6]} 16. Qd1 {[%clk 0:01:53.8]} 16... Nxd5
{[%clk 0:02:23.3]} 17. Nxd5 {[%clk 0:01:53.2]} 17... Qxd5 {[%clk 0:02:23.1]} 18.
Bc3 {[%clk 0:01:53.7]} 18... h5 {[%clk 0:02:15.5]} 19. Qd2 {[%clk 0:01:50.4]}
19... g4 {[%clk 0:02:09.7]} 20. hxg4 {[%clk 0:01:38.5]} 20... hxg4 {[%clk
0:02:08.7]} 21. Nh4 {[%clk 0:01:35]} 21... Qf7 {[%clk 0:01:43.1]} 22. g3 {[%clk
0:01:25.1]} 22... Nb6 {[%clk 0:01:39.4]} 23. d4 {[%clk 0:01:19.1]} 23... Nc4
{[%clk 0:01:28.7]} 24. Qd1 {[%clk 0:01:12.7]} 24... e4 {[%clk 0:01:21]} 25. Ng2
{[%clk 0:01:07.4]} 25... Rh8 {[%clk 0:00:57.6]} 26. Qe2 {[%clk 0:00:59.3]} 26...
Rh3 {[%clk 0:00:45]} 27. Nh4 {[%clk 0:00:57.3]} 27... Rxh1 {[%clk 0:00:28.7]}
28. Rxh1 {[%clk 0:00:55.5]} 28... e3 {[%clk 0:00:29]} 29. Nxf5 {[%clk
0:00:37.2]} 29... Qxf5 {[%clk 0:00:20]} 30. Qxc4 {[%clk 0:00:36.3]} 30... exf2
{[%clk 0:00:18.3]} 31. Rf1 {[%clk 0:00:32.2]} 31... Bxg3 {[%clk 0:00:17.5]} 32.
a4 {[%clk 0:00:31.1]} 32... Bd6 {[%clk 0:00:15.8]} 33. d5 {[%clk 0:00:30]} 33...
g3 {[%clk 0:00:15.2]} 34. Bd4 {[%clk 0:00:21.5]} 34... g2 {[%clk 0:00:12.3]} 35.
Rxf2 {[%clk 0:00:20.7]} 35... g1=Q+ {[%clk 0:00:12.1]} 36. Ka2 {[%clk
0:00:20.4]} 36... Qgxf2 {[%clk 0:00:08.7]} 37. Bxf2 {[%clk 0:00:20.2]} 37...
Qxf2 {[%clk 0:00:09.3]} 38. Qg4+ {[%clk 0:00:20.6]} 38... Kb8 {[%clk 0:00:09.5]}
39. Qc4 {[%clk 0:00:21.4]} 39... Re2 {[%clk 0:00:08.9]} 40. Kb3 {[%clk
0:00:21.2]} 40... Re3+ {[%clk 0:00:09.1]} 41. Ka2 {[%clk 0:00:21.3]} 41... Qe2
{[%clk 0:00:08.6]} 42. Qxe2 {[%clk 0:00:19.1]} 42... Rxe2 {[%clk 0:00:08.6]} 43.
Kb3 {[%clk 0:00:20]} 43... Rd2 {[%clk 0:00:08.7]} 44. c3 {[%clk 0:00:20.9]}
44... Rxd5 {[%clk 0:00:08.3]} 45. Kc4 {[%clk 0:00:21.8]} 45... Re5 {[%clk
0:00:08.8]} 46. b4 {[%clk 0:00:22.7]} 46... b5+ {[%clk 0:00:09.3]} 47. Kb3
{[%clk 0:00:23.6]} 47... Re3 {[%clk 0:00:08.7]} 48. axb5 {[%clk 0:00:22]} 48...
axb5 {[%clk 0:00:08.3]} 49. Kc2 {[%clk 0:00:22.9]} 49... Be5 {[%clk 0:00:08.4]}
50. c4 {[%clk 0:00:23.8]} 50... Rc3+ {[%clk 0:00:08.1]} 51. Kd2 {[%clk
0:00:24.7]} 51... bxc4 {[%clk 0:00:07.6]} 52. Ke2 {[%clk 0:00:25.6]} 52... Kb7
{[%clk 0:00:08]} 53. Kd2 {[%clk 0:00:26.5]} 53... Kb6 {[%clk 0:00:08.5]} 54. Ke2
{[%clk 0:00:27.4]} 54... Kb5 {[%clk 0:00:09.1]} 55. Kd2 {[%clk 0:00:28.3]} 55...
Kxb4 {[%clk 0:00:09.7]} 56. Ke2 {[%clk 0:00:28.5]} 56... Rg3 {[%clk 0:00:10.2]}
57. Kd2 {[%clk 0:00:29.4]} 57... c3+ {[%clk 0:00:10.7]} 0-1

[Event "*** Titled Tuesday Blitz"]
[Site "Chess.com"]
[Date "2020.11.10"]
[Round "1"]
[White "1977Ivan"]
[Black "lucachess49"]
[Result "1-0"]
[WhiteElo "2706"]
[BlackElo "2362"]
[TimeControl "180+1"]
[EndTime "10:07:59 PST"]
[Termination "1977Ivan won by resignation"]

1. d4 {[%clk 0:03:00.9]} 1... Nf6 {[%clk 0:02:57.5]} 2. Nd2 {[%clk 0:03:00.3]}
2... d5 {[%clk 0:02:56.7]} 3. Ngf3 {[%clk 0:02:59.8]} 3... c5 {[%clk 0:02:56.4]}
4. e3 {[%clk 0:02:58.9]} 4... Nc6 {[%clk 0:02:56.5]} 5. c3 {[%clk 0:02:59.1]}
5... Bg4 {[%clk 0:02:55]} 6. dxc5 {[%clk 0:02:57.2]} 6... e6 {[%clk 0:02:44.2]}
7. b4 {[%clk 0:02:56.3]} 7... a5 {[%clk 0:02:42.9]} 8. Bb5 {[%clk 0:02:48.3]}
8... Nd7 {[%clk 0:02:33.6]} 9. Bb2 {[%clk 0:02:45.9]} 9... axb4 {[%clk 0:02:18]}
10. Bxc6 {[%clk 0:02:42.5]} 10... bxc6 {[%clk 0:02:15.4]} 11. cxb4 {[%clk
0:02:42.8]} 11... Be7 {[%clk 0:02:00.4]} 12. Bxg7 {[%clk 0:02:30.8]} 12... Rg8
{[%clk 0:02:00]} 13. Bc3 {[%clk 0:02:29.8]} 13... Bf6 {[%clk 0:01:21.2]} 14. Qc1
{[%clk 0:02:28.4]} 14... Bf5 {[%clk 0:01:04.2]} 15. g3 {[%clk 0:02:02.5]} 15...
Bd3 {[%clk 0:00:46.9]} 16. Qb2 {[%clk 0:02:02]} 16... Ra4 {[%clk 0:00:23]} 17.
a3 {[%clk 0:01:51.2]} 17... Ke7 {[%clk 0:00:04.4]} 18. Bxf6+ {[%clk 0:01:48.7]}
18... Nxf6 {[%clk 0:00:04.4]} 19. Ne5 {[%clk 0:01:41.1]} 19... Bb5 {[%clk
0:00:02.7]} 20. Nb3 {[%clk 0:01:39.2]} 20... Qc7 {[%clk 0:00:02.9]} 21. Nd4
{[%clk 0:01:35.6]} 21... Rga8 {[%clk 0:00:03]} 22. Nxb5 {[%clk 0:01:27.4]} 22...
cxb5 {[%clk 0:00:03.9]} 23. O-O {[%clk 0:01:27.4]} 23... Ne4 {[%clk 0:00:04.1]}
24. f3 {[%clk 0:01:02.2]} 24... Ng5 {[%clk 0:00:04.2]} 25. h4 {[%clk 0:00:58.9]}
25... f6 {[%clk 0:00:04.2]} 26. hxg5 {[%clk 0:00:57.3]} 26... Qxe5 {[%clk
0:00:04.4]} 27. gxf6+ {[%clk 0:00:54]} 27... Kxf6 {[%clk 0:00:04.6]} 28. Qxe5+
{[%clk 0:00:40.6]} 28... Kxe5 {[%clk 0:00:05.5]} 29. Rfc1 {[%clk 0:00:38.1]}
29... Rxa3 {[%clk 0:00:04.5]} 30. Rxa3 {[%clk 0:00:37.6]} 30... Rxa3 {[%clk
0:00:05.4]} 31. c6 {[%clk 0:00:32.1]} 31... Ra8 {[%clk 0:00:05.9]} 32. g4 {[%clk
0:00:27.5]} 32... Rc8 {[%clk 0:00:06.1]} 33. Kf2 {[%clk 0:00:22.6]} 33... Kd6
{[%clk 0:00:06.4]} 34. Rc5 {[%clk 0:00:16.9]} 34... Rxc6 {[%clk 0:00:06.4]} 35.
Rxb5 {[%clk 0:00:17]} 35... Rc2+ {[%clk 0:00:06.2]} 36. Kg3 {[%clk 0:00:17.1]}
36... Re2 {[%clk 0:00:06.1]} 37. Rb6+ {[%clk 0:00:13.4]} 37... Ke5 {[%clk
0:00:06.4]} 38. f4+ {[%clk 0:00:11.6]} 38... Kf6 {[%clk 0:00:06.3]} 39. Kf3
{[%clk 0:00:11.6]} 39... Re1 {[%clk 0:00:05.6]} 40. f5 {[%clk 0:00:11.7]} 40...
Kg5 {[%clk 0:00:03.6]} 41. fxe6 {[%clk 0:00:08.5]} 41... Kf6 {[%clk 0:00:03.6]}
42. b5 {[%clk 0:00:08]} 42... Rb1 {[%clk 0:00:02.6]} 43. g5+ {[%clk 0:00:07.5]}
43... Ke7 {[%clk 0:00:02.6]} 44. Kf4 {[%clk 0:00:07.6]} 44... Rb4+ {[%clk
0:00:02.1]} 45. Kf5 {[%clk 0:00:07]} 45... Rb3 {[%clk 0:00:02.1]} 46. Rb7+
{[%clk 0:00:06.9]} 46... Ke8 {[%clk 0:00:02.6]} 47. Rxh7 {[%clk 0:00:06.6]}
47... Rxb5 {[%clk 0:00:02.7]} 48. Kf6 {[%clk 0:00:06]} 48... Kd8 {[%clk
0:00:02.1]} 49. Rh8+ {[%clk 0:00:06.9]} 49... Kc7 {[%clk 0:00:02.1]} 50. e7
{[%clk 0:00:07.8]} 50... Rb6+ {[%clk 0:00:02.4]} 51. Kf7 {[%clk 0:00:08]} 1-0

[Event "*** Titled Tuesday Blitz"]
[Site "Chess.com"]
[Date "2020.11.10"]
[Round "1"]
[White "Zkid"]
[Black "stolencandy13"]
[Result "1-0"]
[WhiteElo "2757"]
[BlackElo "2398"]
[TimeControl "180+1"]
[EndTime "10:08:00 PST"]
[Termination "Zkid won by resignation"]

1. d4 {[%clk 0:02:49.4]} 1... Nf6 {[%clk 0:02:59.8]} 2. c4 {[%clk 0:02:48.3]}
2... e5 {[%clk 0:02:57.8]} 3. dxe5 {[%clk 0:02:47.3]} 3... Ng4 {[%clk
0:02:57.9]} 4. Nf3 {[%clk 0:02:46.6]} 4... Bc5 {[%clk 0:02:57.5]} 5. e3 {[%clk
0:02:44.1]} 5... Nc6 {[%clk 0:02:58]} 6. Be2 {[%clk 0:02:36.9]} 6... Ngxe5
{[%clk 0:02:56.6]} 7. Nxe5 {[%clk 0:02:37.8]} 7... Nxe5 {[%clk 0:02:56.1]} 8.
O-O {[%clk 0:02:35]} 8... O-O {[%clk 0:02:56.2]} 9. Nc3 {[%clk 0:02:34.9]} 9...
a5 {[%clk 0:02:52.9]} 10. b3 {[%clk 0:02:34.7]} 10... Re8 {[%clk 0:02:51.9]} 11.
Bb2 {[%clk 0:02:34.7]} 11... Ra6 {[%clk 0:02:52]} 12. Ne4 {[%clk 0:02:29.9]}
12... Ba7 {[%clk 0:02:41.1]} 13. Qd5 {[%clk 0:02:12.2]} 13... Rae6 {[%clk
0:02:12.5]} 14. Qxa5 {[%clk 0:02:03.7]} 14... Bb6 {[%clk 0:02:06.7]} 15. Qc3
{[%clk 0:01:56.4]} 15... Qh4 {[%clk 0:02:00.9]} 16. f4 {[%clk 0:01:38.4]} 16...
Rh6 {[%clk 0:01:49.1]} 17. h3 {[%clk 0:01:19.8]} 17... Rg6 {[%clk 0:01:46.6]}
18. fxe5 {[%clk 0:00:54.2]} 18... Qxe4 {[%clk 0:01:43.6]} 19. Bf3 {[%clk
0:00:44.6]} 19... Qxe3+ {[%clk 0:01:24.8]} 20. Qxe3 {[%clk 0:00:44.2]} 20...
Bxe3+ {[%clk 0:01:25.7]} 21. Kh1 {[%clk 0:00:44.7]} 21... Bf4 {[%clk 0:01:19]}
22. Be4 {[%clk 0:00:34.4]} 22... Bxe5 {[%clk 0:01:11.7]} 23. Bxg6 {[%clk
0:00:32.4]} 23... hxg6 {[%clk 0:01:10.6]} 24. Rfe1 {[%clk 0:00:31.1]} 24... d6
{[%clk 0:01:06.4]} 25. c5 {[%clk 0:00:30.4]} 25... f6 {[%clk 0:01:02.5]} 26.
cxd6 {[%clk 0:00:25.7]} 26... cxd6 {[%clk 0:01:02.3]} 27. Rac1 {[%clk
0:00:23.5]} 27... Bd7 {[%clk 0:00:56.6]} 28. Bxe5 {[%clk 0:00:22]} 28... dxe5
{[%clk 0:00:46.6]} 29. a4 {[%clk 0:00:21.6]} 29... Be6 {[%clk 0:00:37.2]} 30. b4
{[%clk 0:00:20.8]} 30... Ra8 {[%clk 0:00:27.9]} 31. a5 {[%clk 0:00:20.9]} 31...
Bd5 {[%clk 0:00:27.7]} 32. Red1 {[%clk 0:00:21]} 32... Bc6 {[%clk 0:00:26.4]}
33. Kg1 {[%clk 0:00:21.6]} 33... Kf7 {[%clk 0:00:26.1]} 34. Rd6 {[%clk
0:00:19.9]} 34... Ke7 {[%clk 0:00:25.8]} 35. Rdxc6 {[%clk 0:00:20.5]} 35... bxc6
{[%clk 0:00:26.7]} 36. Rxc6 {[%clk 0:00:20.8]} 36... Kd7 {[%clk 0:00:25.8]} 37.
Rb6 {[%clk 0:00:20]} 37... Kc7 {[%clk 0:00:25.9]} 38. Kf2 {[%clk 0:00:20.6]}
38... Rd8 {[%clk 0:00:25.2]} 39. Ke2 {[%clk 0:00:20.5]} 39... Rd4 {[%clk
0:00:22.6]} 40. Rb5 {[%clk 0:00:20.8]} 40... Kc6 {[%clk 0:00:20.4]} 41. Rc5+
{[%clk 0:00:20.8]} 41... Kd6 {[%clk 0:00:20.5]} 42. Rb5 {[%clk 0:00:21.3]} 42...
Kc6 {[%clk 0:00:20.9]} 43. Rb6+ {[%clk 0:00:21.8]} 43... Kc7 {[%clk 0:00:21.1]}
44. Ke3 {[%clk 0:00:22.2]} 44... Rc4 {[%clk 0:00:20.9]} 45. Kd3 {[%clk
0:00:22.5]} 45... Rd4+ {[%clk 0:00:21]} 46. Kc3 {[%clk 0:00:23]} 46... g5 {[%clk
0:00:21.4]} 47. Re6 {[%clk 0:00:22.1]} 47... Kd7 {[%clk 0:00:20.7]} 48. Ra6
{[%clk 0:00:22.3]} 48... Kc7 {[%clk 0:00:21.1]} 49. Ra7+ {[%clk 0:00:22.3]}
49... Kc6 {[%clk 0:00:21.6]} 50. Ra6+ {[%clk 0:00:22.6]} 50... Kc7 {[%clk
0:00:20.7]} 51. b5 {[%clk 0:00:23.1]} 51... Ra4 {[%clk 0:00:19.6]} 52. Ra7+
{[%clk 0:00:23.5]} 52... Kd6 {[%clk 0:00:19.4]} 53. a6 {[%clk 0:00:22.6]} 53...
Kc5 {[%clk 0:00:18.5]} 54. Rb7 {[%clk 0:00:22.1]} 54... Ra3+ {[%clk 0:00:17.7]}
55. Kb2 {[%clk 0:00:22.3]} 55... Ra5 {[%clk 0:00:17.9]} 56. a7 {[%clk 0:00:22]}
56... e4 {[%clk 0:00:16.6]} 57. b6 {[%clk 0:00:19.5]} 57... e3 {[%clk
0:00:16.3]} 58. Kc3 {[%clk 0:00:18.9]} 58... Ra3+ {[%clk 0:00:16]} 59. Kc2
{[%clk 0:00:19.1]} 59... e2 {[%clk 0:00:15.7]} 60. Kd2 {[%clk 0:00:18.7]} 60...
Ra2+ {[%clk 0:00:15.7]} 61. Ke1 {[%clk 0:00:19.1]} 61... Kd4 {[%clk 0:00:15.8]}
62. Re7 {[%clk 0:00:18.7]} 62... Kd3 {[%clk 0:00:14.1]} 63. b7 {[%clk 0:00:18]}
63... Ra1+ {[%clk 0:00:12.7]} 64. Kf2 {[%clk 0:00:18.3]} 64... Rf1+ {[%clk
0:00:12.6]} 65. Kg3 {[%clk 0:00:18.5]} 65... e1=Q+ {[%clk 0:00:11.1]} 66. Rxe1
{[%clk 0:00:19.4]} 66... Rxe1 {[%clk 0:00:12]} 67. b8=Q {[%clk 0:00:19.7]} 67...
Re3+ {[%clk 0:00:12]} 68. Kh2 {[%clk 0:00:20.5]} 1-0

[Event "*** Titled Tuesday Blitz"]
[Site "Chess.com"]
[Date "2020.11.10"]
[Round "1"]
[White "Das_Virus_2020"]
[Black "RobertoJBM"]
[Result "1/2-1/2"]
[WhiteElo "2412"]
[BlackElo "2806"]
[TimeControl "180+1"]
[EndTime "10:08:06 PST"]
[Termination "Game drawn by repetition"]

1. e4 {[%clk 0:02:53.6]} 1... c6 {[%clk 0:02:58.9]} 2. Nc3 {[%clk 0:02:52.6]}
2... d5 {[%clk 0:02:59.8]} 3. d4 {[%clk 0:02:53.1]} 3... dxe4 {[%clk 0:03:00]}
4. Nxe4 {[%clk 0:02:54]} 4... Nd7 {[%clk 0:03:00.6]} 5. Nf3 {[%clk 0:02:52.8]}
5... Ngf6 {[%clk 0:02:59.7]} 6. Nxf6+ {[%clk 0:02:52.9]} 6... Nxf6 {[%clk
0:02:59.8]} 7. Bd3 {[%clk 0:02:53.5]} 7... Bg4 {[%clk 0:02:58.5]} 8. c3 {[%clk
0:02:52.8]} 8... Qd5 {[%clk 0:02:57.6]} 9. Be2 {[%clk 0:02:50.9]} 9... e6 {[%clk
0:02:57.6]} 10. Be3 {[%clk 0:02:50.2]} 10... Bd6 {[%clk 0:02:57.2]} 11. Qb3
{[%clk 0:02:48.7]} 11... Qxb3 {[%clk 0:02:56.4]} 12. axb3 {[%clk 0:02:48.3]}
12... a6 {[%clk 0:02:57]} 13. b4 {[%clk 0:02:46.5]} 13... Nd5 {[%clk 0:02:56.2]}
14. b5 {[%clk 0:02:39.2]} 14... cxb5 {[%clk 0:02:55.6]} 15. Bxb5+ {[%clk
0:02:38.3]} 15... Ke7 {[%clk 0:02:55.8]} 16. Be2 {[%clk 0:02:38.2]} 16... Nxe3
{[%clk 0:02:51.3]} 17. fxe3 {[%clk 0:02:39.1]} 17... f6 {[%clk 0:02:39.7]} 18.
Nd2 {[%clk 0:02:32.6]} 18... Bxe2 {[%clk 0:02:24]} 19. Kxe2 {[%clk 0:02:33.5]}
19... Rad8 {[%clk 0:02:17.9]} 20. h3 {[%clk 0:02:32.2]} 20... Rhe8 {[%clk
0:02:16]} 21. Nc4 {[%clk 0:02:24.9]} 21... Bc7 {[%clk 0:02:15.1]} 22. Na5 {[%clk
0:02:22.5]} 22... Bxa5 {[%clk 0:02:14.3]} 23. Rxa5 {[%clk 0:02:21.5]} 23... Kd6
{[%clk 0:02:12.6]} 24. b4 {[%clk 0:02:03.1]} 24... Rc8 {[%clk 0:02:10.9]} 25.
Rc1 {[%clk 0:01:59.7]} 25... Rc7 {[%clk 0:02:04.7]} 26. Kd3 {[%clk 0:01:58.1]}
26... Rd8 {[%clk 0:02:00.8]} 27. c4 {[%clk 0:01:54.5]} 27... Ke7 {[%clk
0:02:01.1]} 28. c5 {[%clk 0:01:53]} 28... Rd5 {[%clk 0:01:56.1]} 29. Ra2 {[%clk
0:01:37.5]} 29... f5 {[%clk 0:01:38.8]} 30. Kc4 {[%clk 0:01:29.8]} 30... Rd8
{[%clk 0:01:36.2]} 31. b5 {[%clk 0:01:28.2]} 31... axb5+ {[%clk 0:01:34.4]} 32.
Kxb5 {[%clk 0:01:26.6]} 32... e5 {[%clk 0:01:34.6]} 33. Rd1 {[%clk 0:01:13.4]}
33... Ke6 {[%clk 0:01:33.3]} 34. Kc4 {[%clk 0:01:04.3]} 34... Rd5 {[%clk
0:00:49.2]} 35. Rd3 {[%clk 0:00:41]} 35... g5 {[%clk 0:00:26.5]} 36. Rb2 {[%clk
0:00:35.1]} 36... exd4 {[%clk 0:00:22.7]} 37. exd4 {[%clk 0:00:33.8]} 37... Rdd7
{[%clk 0:00:19.4]} 38. d5+ {[%clk 0:00:29.1]} 38... Ke5 {[%clk 0:00:17.7]} 39.
Re2+ {[%clk 0:00:26.6]} 39... Kf6 {[%clk 0:00:16.9]} 40. d6 {[%clk 0:00:25.4]}
40... Rc6 {[%clk 0:00:16.1]} 41. Kd5 {[%clk 0:00:25.1]} 41... g4 {[%clk
0:00:12.8]} 42. hxg4 {[%clk 0:00:22.2]} 42... fxg4 {[%clk 0:00:13.5]} 43. Re6+
{[%clk 0:00:21.4]} 43... Kf5 {[%clk 0:00:12.5]} 44. Re5+ {[%clk 0:00:20.3]}
44... Kf6 {[%clk 0:00:11.4]} 45. Re4 {[%clk 0:00:10.3]} 45... Kf5 {[%clk
0:00:11]} 46. Re6 {[%clk 0:00:09.3]} 46... Rxc5+ {[%clk 0:00:10.3]} 47. Kxc5
{[%clk 0:00:09.3]} 47... Kxe6 {[%clk 0:00:11.2]} 48. Re3+ {[%clk 0:00:09.8]}
48... Kf6 {[%clk 0:00:10.9]} 49. Kd5 {[%clk 0:00:10.2]} 49... h5 {[%clk
0:00:10.9]} 50. Re1 {[%clk 0:00:10.4]} 50... h4 {[%clk 0:00:10.7]} 51. Rf1+
{[%clk 0:00:10.6]} 51... Kg5 {[%clk 0:00:11.1]} 52. Ke6 {[%clk 0:00:10.9]} 52...
Rh7 {[%clk 0:00:10]} 53. Rf5+ {[%clk 0:00:09.2]} 53... Kg6 {[%clk 0:00:10]} 54.
Rf6+ {[%clk 0:00:09.5]} 54... Kg5 {[%clk 0:00:10.2]} 55. Rf5+ {[%clk 0:00:09.9]}
55... Kg6 {[%clk 0:00:10.4]} 56. Rf6+ {[%clk 0:00:09.9]} 56... Kg5 {[%clk
0:00:10.9]} 57. Rf5+ {[%clk 0:00:09.7]} 1/2-1/2

[Event "*** Titled Tuesday Blitz"]
[Site "Chess.com"]
[Date "2020.11.10"]
[Round "1"]
[White "fm_magua"]
[Black "Sergienko_Sergey"]
[Result "0-1"]
[WhiteElo "2581"]
[BlackElo "2291"]
[TimeControl "180+1"]
[EndTime "10:08:07 PST"]
[Termination "Sergienko_Sergey won by resignation"]

1. e4 {[%clk 0:03:00.4]} 1... c5 {[%clk 0:02:59.2]} 2. Nf3 {[%clk 0:03:00]} 2...
a6 {[%clk 0:02:58.6]} 3. Nc3 {[%clk 0:02:59.6]} 3... b5 {[%clk 0:02:57.2]} 4. d4
{[%clk 0:02:57.1]} 4... cxd4 {[%clk 0:02:56.6]} 5. Nxd4 {[%clk 0:02:57.8]} 5...
Bb7 {[%clk 0:02:56]} 6. Bd3 {[%clk 0:02:57.6]} 6... g6 {[%clk 0:02:55.1]} 7. O-O
{[%clk 0:02:57.5]} 7... Bg7 {[%clk 0:02:54.9]} 8. Be3 {[%clk 0:02:56.9]} 8... d6
{[%clk 0:02:54.6]} 9. a3 {[%clk 0:02:52.7]} 9... Nf6 {[%clk 0:02:53.6]} 10. f4
{[%clk 0:02:52.1]} 10... Nbd7 {[%clk 0:02:50.4]} 11. f5 {[%clk 0:02:50.4]} 11...
O-O {[%clk 0:02:46.8]} 12. Qc1 {[%clk 0:02:48.7]} 12... Ng4 {[%clk 0:02:39.1]}
13. Nce2 {[%clk 0:02:41.6]} 13... Nxe3 {[%clk 0:02:33.2]} 14. Qxe3 {[%clk
0:02:40.1]} 14... Rc8 {[%clk 0:02:31]} 15. c3 {[%clk 0:02:39.5]} 15... Ne5
{[%clk 0:02:24.4]} 16. Bc2 {[%clk 0:02:38.6]} 16... Nc4 {[%clk 0:02:21.8]} 17.
Qh3 {[%clk 0:02:37.5]} 17... Nxb2 {[%clk 0:01:59.2]} 18. fxg6 {[%clk 0:02:36.9]}
18... hxg6 {[%clk 0:01:58.4]} 19. Nf5 {[%clk 0:02:37.1]} 19... Nc4 {[%clk
0:01:40.8]} 20. Nxg7 {[%clk 0:02:36.3]} 20... Kxg7 {[%clk 0:01:40.3]} 21. Nd4
{[%clk 0:02:30]} 21... Ne5 {[%clk 0:01:31.8]} 22. Bb3 {[%clk 0:02:21.5]} 22...
Nc4 {[%clk 0:01:00.7]} 23. Rf3 {[%clk 0:02:19]} 23... Rh8 {[%clk 0:00:52.4]} 24.
Rxf7+ {[%clk 0:02:01.6]} 24... Kxf7 {[%clk 0:00:45.1]} 25. Rf1+ {[%clk 0:02:01]}
25... Ke8 {[%clk 0:00:44]} 26. Qxh8+ {[%clk 0:01:57.1]} 26... Kd7 {[%clk
0:00:44]} 27. Qh3+ {[%clk 0:01:57]} 27... Ke8 {[%clk 0:00:40.3]} 28. Ne6 {[%clk
0:01:29.7]} 28... Qb6+ {[%clk 0:00:39.2]} 29. Kh1 {[%clk 0:01:30.1]} 29... Qe3
{[%clk 0:00:33.5]} 30. Qg4 {[%clk 0:01:08.5]} 30... Ne5 {[%clk 0:00:23.8]} 31.
Qh4 {[%clk 0:00:45.9]} 31... Qxe4 {[%clk 0:00:21.9]} 32. Qg5 {[%clk 0:00:40.1]}
32... Qxg2+ {[%clk 0:00:19.6]} 33. Qxg2 {[%clk 0:00:39.8]} 33... Bxg2+ {[%clk
0:00:19.3]} 34. Kxg2 {[%clk 0:00:40.7]} 34... Rxc3 {[%clk 0:00:19.3]} 35. Bd5
{[%clk 0:00:40.6]} 35... Rxa3 {[%clk 0:00:17.3]} 36. Nd4 {[%clk 0:00:39.8]}
36... Kd7 {[%clk 0:00:15.2]} 37. Be6+ {[%clk 0:00:39.7]} 37... Kc7 {[%clk
0:00:15.2]} 38. Rc1+ {[%clk 0:00:39.8]} 38... Kb6 {[%clk 0:00:14.8]} 39. h4
{[%clk 0:00:37.3]} 39... Rd3 {[%clk 0:00:14.2]} 40. Ne2 {[%clk 0:00:37]} 40...
a5 {[%clk 0:00:13.4]} 41. Nf4 {[%clk 0:00:37.2]} 41... Rd2+ {[%clk 0:00:12.2]}
42. Kg3 {[%clk 0:00:37.6]} 42... a4 {[%clk 0:00:11.9]} 43. Nd5+ {[%clk 0:00:37]}
43... Ka5 {[%clk 0:00:10.5]} 44. Rc7 {[%clk 0:00:37.1]} 44... b4 {[%clk
0:00:09.9]} 45. Nxe7 {[%clk 0:00:35.8]} 45... b3 {[%clk 0:00:08.8]} 46. Rb7
{[%clk 0:00:35.8]} 46... Rd3+ {[%clk 0:00:07.2]} 47. Kf4 {[%clk 0:00:35.5]}
47... Rd4+ {[%clk 0:00:06.9]} 48. Ke3 {[%clk 0:00:35.6]} 48... Rxh4 {[%clk
0:00:06.2]} 49. Bd5 {[%clk 0:00:33.5]} 49... Rh3+ {[%clk 0:00:05.2]} 50. Kd4
{[%clk 0:00:33.7]} 50... Rd3+ {[%clk 0:00:04.3]} 51. Ke4 {[%clk 0:00:32.9]}
51... Rd2 {[%clk 0:00:04]} 52. Rb8 {[%clk 0:00:31.3]} 52... b2 {[%clk
0:00:03.2]} 53. Nc6+ {[%clk 0:00:31.5]} 53... Nxc6 {[%clk 0:00:02.2]} 54. Bxc6
{[%clk 0:00:30.8]} 54... a3 {[%clk 0:00:02.6]} 55. Rb5+ {[%clk 0:00:30]} 55...
Ka6 {[%clk 0:00:02]} 56. Rb3 {[%clk 0:00:30.2]} 56... d5+ {[%clk 0:00:02]} 57.
Bxd5 {[%clk 0:00:30.4]} 57... a2 {[%clk 0:00:02.1]} 58. Bc4+ {[%clk 0:00:30.9]}
58... Ka5 {[%clk 0:00:01.7]} 59. Rb5+ {[%clk 0:00:31.3]} 59... Ka4 {[%clk
0:00:01.6]} 60. Rb7 {[%clk 0:00:29.7]} 60... b1=Q+ {[%clk 0:00:01.4]} 0-1